bitfinex-derivatives/quotes_ETHF0:USTF0_20250214
["timestamp","ask_amount","ask_price","bid_price","bid_amount"]
[1739553405966,0.73062,2737.0,2736.9,1.1239]
[1739553406161,3.2078,2737.1,2736.9,1.1239]
[1739553406361,0.73062,2737.0,2736.9,1.1239]
[1739553406563,3.2078,2737.1,2736.5,2.47975]
[1739553406765,0.73066,2736.9,2736.6,1.1067]
[1739553406965,3.2078,2736.8,2736.6,1.1067]
[1739553407171,3.2078,2736.8,2736.6,1.83742]
[1739553407774,3.93848,2736.8,2736.6,1.1067]
[1739553408166,0.7307,2736.7,2736.6,1.1067]
[1739553408471,3.2078,2736.8,2736.6,1.1067]
[1739553408975,3.2078,2737.1,2736.8,0.73066]
[1739553409166,0.73062,2737.0,2736.7,3.57321578]
[1739553409367,40.8,2736.9,2736.7,0.73069]
[1739553410073,40.8,2736.9,2736.6,1.1067]
[1739553410376,3.2078,2736.8,2736.6,1.1067]
[1739553410577,41.53066,2736.9,2736.6,1.1067]
[1739553410770,40.8,2736.9,2736.6,1.8374]
[1739553411073,40.8,2736.9,2736.7,0.73067]
[1739553411276,40.8,2736.9,2736.7,0.73069]
[1739553411468,40.8,2736.9,2736.8,0.73067]
[1739553413982,40.8,2736.9,2736.8,1.82337]
[1739553418783,40.8,2736.9,2736.8,5.03117]
[1739553418980,3.2078,2737.4,2736.8,7.87369578]
[1739553419186,3.2078,2737.4,2737.3,3.57306578]
[1739553419678,0.73044,2737.7,2737.3,2.84252578]
[1739553419679,3.2078,2737.7,2737.3,2.84252578]
[1739553419884,3.93824,2737.7,2737.5,0.73048]
[1739553420073,40.8,2737.6,2737.4,0.73049]
[1739553420276,40.8,2737.6,2737.5,0.73048]
[1739553420678,40.8,2737.6,2737.5,3.93828]
[1739553420887,40.8,2737.6,2737.5,6.75748]
[1739553421182,40.8,2737.6,2737.5,12.75748]
[1739553421573,40.8,2737.6,2737.5,6.75748]
[1739553422279,40.8,2737.6,2737.5,12.75748]
[1739553424684,3.2078,2738.3,2737.5,12.027]
[1739553424885,3.2078,2738.3,2738.1,2.84252578]
[1739553425191,3.2078,2738.3,2738.2,1.1]
[1739553425792,44.0078,2738.3,2738.2,1.1]
[1739553427086,44.0078,2738.3,2738.1,2.84252578]
[1739553427395,0.73031,2738.2,2737.8,3.57291578]
[1739553427691,3.2078,2738.3,2737.8,2.84252578]
[1739553427897,0.73033,2738.1,2737.8,2.84252578]
[1739553428095,40.8,2737.9,2737.8,3.57292578]
[1739553429597,40.8,2737.9,2737.8,2.84252578]
[1739553429797,40.8,2737.9,2737.8,3.57292578]
[1739553434606,40.8,2737.9,2737.8,6.78072578]
[1739553437107,40.8,2737.9,2737.8,8.52672578]
[1739553438409,3.2078,2738.7,2738.6,0.73019]
[1739553438609,1.0925,2738.9,2738.7,0.73016]
[1739553439011,1.0925,2738.9,2738.8,0.73014]
[1739553439215,1.1362,2739.3,2738.6,6.05032578]
[1739553439411,40.8,2738.9,2738.8,0.73014]
[1739553439706,3.2078,2739.4,2738.8,1.746]
[1739553439909,3.2078,2739.7,2739.2,3.2078]
[1739553440100,3.2078,2739.7,2739.6,0.72992]
[1739553440810,44.0078,2739.7,2739.6,0.72992]
[1739553441010,44.0078,2739.7,2739.6,3.57244578]
[1739553441406,40.8,2739.7,2739.6,1.746]
[1739553441602,40.8,2739.7,2739.4,0.00548095]
[1739553442015,0.72995,2739.5,2739.4,0.00548095]
[1739553442206,9.05777578,2739.6,2738.7,2.84252578]
[1739553442513,0.73013,2738.9,2738.5,1.746]
[1739553442713,3.2078,2739.0,2738.4,2.84252578]
[1739553442917,40.8,2738.6,2738.4,2.84252578]
[1739553443209,40.8,2738.6,2738.4,3.57275578]
[1739553443512,40.8,2738.6,2738.4,3.57276578]
[1739553443714,40.8,2738.6,2738.5,0.73022]
[1739553444216,40.8,2738.6,2738.4,7.84624578]
[1739553444516,40.8,2738.6,2738.4,7.11602578]
[1739553444716,40.8,2738.6,2738.5,0.73022]
[1739553447315,0.00548095,2738.8,2738.7,0.73016]
[1739553447619,0.00548095,2738.8,2738.7,3.57268578]
[1739553448014,0.00548095,2738.8,2738.7,2.84252578]
[1739553448214,40.80548095,2738.8,2738.7,2.84252578]
[1739553449515,40.80548095,2738.8,2738.4,6.05032578]
[1739553449725,0.73016,2738.7,2738.4,4.58752578]
[1739553449911,3.2078,2738.6,2738.4,4.58752578]
[1739553450312,3.2078,2738.6,2738.2,0.00548095]
[1739553450615,3.93807,2738.4,2738.2,0.00548095]
[1739553451221,0.73027,2738.3,2738.2,0.00548095]
[1739553451522,0.73039,2737.9,2737.5,3.57299578]
[1739553451718,3.93819,2737.9,2737.5,3.57299578]
[1739553451918,40.8,2737.6,2737.5,3.57299578]
[1739553452223,40.8,2737.6,2737.5,3.87014776]
[1739553452424,40.8,2737.6,2737.5,3.57299578]
[1739553452718,40.8,2737.6,2737.3,2.29943399]
[1739553452918,40.8,2737.6,2737.3,0.00548095]
[1739553453120,44.0078,2737.6,2737.3,0.00548095]
[1739553453418,0.7305,2737.5,2737.3,0.00548095]
[1739553453620,0.73048,2737.5,2737.3,0.00548095]
[1739553453921,44.0078,2737.6,2737.3,0.00548095]
[1739553454420,0.73051,2737.4,2737.3,0.00548095]
[1739553454714,4.6268412,2737.5,2736.5,0.73073]
[1739553454923,3.2078,2736.8,2736.5,0.73073]
[1739553455119,40.8,2736.7,2736.5,0.73073]
[1739553455422,40.8,2736.7,2736.4,1.81536]
[1739553455619,40.8,2736.7,2736.4,1.0846]
[1739553455820,40.8,2736.7,2736.5,0.73074]
[1739553456209,40.8,2736.7,2736.4,1.0846]
[1739553456415,40.8,2736.7,2736.4,1.81536]
[1739553456718,40.8,2736.7,2736.4,2.10826696]
[1739553457222,40.8,2736.7,2736.4,1.37749696]
[1739553457418,40.8,2736.7,2736.4,2.10826696]
[1739553458419,40.8,2736.7,2736.4,1.37749696]
[1739553458617,40.8,2736.7,2736.4,2.10826696]
[1739553459224,40.8,2736.7,2736.4,1.37749696]
[1739553459419,40.8,2736.7,2736.4,0.29289696]
[1739553459621,3.2078,2736.5,2736.3,0.00548095]
[1739553460122,0.73078,2736.4,2736.3,0.00548095]
[1739553460319,41.53078,2736.4,2736.3,0.00548095]
[1739553460722,42.62918,2736.4,2736.3,0.00548095]
[1739553460919,0.73086,2736.1,2735.5,1.1176]
[1739553461115,3.2078,2736.0,2735.5,1.1176]
[1739553461316,3.2078,2736.0,2735.7,0.73095]
[1739553461524,3.2078,2736.0,2735.5,1.1176]
[1739553461717,3.2078,2736.0,2735.6,0.73096]
[1739553461915,3.2078,2736.0,2735.7,0.73094]
[1739553462118,3.2078,2736.0,2735.9,0.73091]
[1739553462627,3.2078,2736.0,2735.6,3.5517412]
[1739553462823,40.8,2735.9,2735.5,0.00548095]
[1739553463534,3.2078,2735.7,2735.5,0.00548095]
[1739553464127,4.3842,2735.7,2735.5,0.00548095]
[1739553464927,40.8,2735.9,2735.5,0.00548095]
[1739553465427,44.0078,2735.9,2735.5,0.00548095]
[1739553465820,44.0078,2735.9,2735.7,0.73095]
[1739553466422,44.0078,2735.9,2735.8,0.73094]
[1739553466921,44.0078,2735.9,2735.6,1.0994]
[1739553467226,44.0078,2735.9,2735.7,0.73095]
[1739553467825,44.0078,2735.9,2735.8,0.73094]
[1739553468630,40.8,2735.9,2735.8,0.73094]
[1739553470223,40.8,2735.9,2735.8,2.47694]
[1739553471218,3.2078,2736.4,2736.3,0.7308]
[1739553472130,44.0078,2736.4,2736.3,0.7308]
[1739553473319,40.8,2736.4,2736.3,0.7308]
[1739553473623,40.8,2736.4,2736.3,3.9386]
[1739553473822,40.8,2736.4,2736.3,5.6836]
[1739553474033,40.8,2736.4,2736.3,7.8561]
[1739553475623,0.00548095,2736.8,2736.7,0.7307]
[1739553476626,40.80548095,2736.8,2736.7,0.7307]
[1739553476827,40.80548095,2736.8,2736.4,0.73077]
[1739553476828,41.53617095,2736.8,2736.4,0.73077]
[1739553477026,40.80548095,2736.8,2736.3,5.3803]
[1739553477231,40.80548095,2736.8,2736.4,0.73077]
[1739553477232,41.53617095,2736.8,2736.4,0.73077]
[1739553477533,3.2078,2736.6,2736.1,1.745]
[1739553477728,3.93853,2736.6,2736.2,0.73081]
[1739553477935,3.2078,2736.6,2736.3,0.7308]
[1739553478125,3.2078,2736.6,2735.9,8.5045412]
[1739553478325,3.93854,2736.6,2736.2,0.73082]
[1739553478521,0.73077,2736.5,2736.1,0.73085]
[1739553478730,0.73077,2736.5,2735.9,8.5045412]
[1739553478930,0.73077,2736.5,2735.9,4.9528]
[1739553479126,3.21035731,2736.6,2735.9,3.2078]
[1739553479430,0.73079,2736.4,2736.1,0.73085]
[1739553479632,1.0779,2736.3,2736.1,0.73085]
[1739553480027,1.0779,2736.3,2736.2,0.73083]
[1739553480427,1.0779,2736.3,2736.1,0.73084]
[1739553480628,1.0779,2736.3,2736.1,0.73083]
[1739553480827,40.8,2736.2,2736.1,0.73083]
[1739553481535,40.8,2736.2,2736.0,0.73088]
[1739553482439,40.8,2736.2,2736.1,0.73086]
[1739553482636,40.8,2736.2,2736.0,0.73088]
[1739553482828,40.8,2736.2,2735.9,3.2078]
[1739553483532,40.8,2736.2,2736.1,0.73086]
[1739553484141,40.8,2736.2,2735.9,3.2078]
[1739553484338,40.8,2736.2,2736.1,0.73086]
[1739553485231,40.8,2736.2,2735.9,3.2078]
[1739553485432,0.73097,2735.7,2735.5,0.00548095]
[1739553485636,6.7595412,2736.0,2735.5,0.00548095]
[1739553485834,3.2078,2735.7,2735.5,0.00548095]
[1739553486036,40.8,2735.6,2735.5,0.00548095]
[1739553486232,40.8,2735.6,2735.5,0.73650095]
[1739553486942,3.2078,2736.0,2735.5,0.00548095]
[1739553487144,3.2078,2736.0,2735.9,0.73091]
[1739553487338,3.2078,2736.0,2735.8,0.73093]
[1739553487840,40.8,2735.9,2735.8,0.73093]
[1739553488241,40.8,2735.9,2735.7,0.73095]
[1739553488434,40.8,2735.9,2735.7,0.73096]
[1739553488636,40.8,2735.9,2735.8,0.73094]
[1739553488836,40.8,2735.9,2735.5,0.00548095]
[1739553489032,3.2078,2735.7,2735.5,0.00548095]
[1739553489436,3.93877,2735.7,2735.5,0.00548095]
[1739553489641,3.2078,2735.7,2735.5,0.00548095]
[1739553490038,0.73099,2735.6,2735.5,0.00548095]
[1739553490539,7.86394,2735.6,2734.8,0.73118]
[1739553490737,3.2078,2735.0,2734.8,0.73118]
[1739553490943,3.2078,2735.0,2734.7,1.0987]
[1739553490944,3.2078,2735.0,2734.3,3.2078]
[1739553491137,3.2078,2734.7,2734.6,0.73126]
[1739553491341,3.2078,2735.0,2734.3,0.28923842]
[1739553491644,0.00548095,2734.9,2734.6,0.73126]
[1739553491848,44.0078,2734.7,2734.4,0.00548095]
[1739553492356,44.0078,2734.7,2734.6,0.73126]
[1739553492853,40.8,2734.7,2734.5,0.73127]
[1739553494849,40.8,2734.7,2734.6,0.73126]
[1739553495359,40.8,2734.7,2734.4,0.00548095]
[1739553495658,40.8,2734.7,2734.5,0.73127]
[1739553495952,40.8,2734.7,2734.6,3.93906]
[1739553496159,0.00548095,2734.9,2734.8,0.7312]
[1739553497249,40.8,2734.9,2734.8,0.7312]
[1739553497650,40.8,2734.9,2734.8,6.7312]
[1739553497959,3.2078,2735.9,2735.7,0.73096]
[1739553498548,3.2078,2735.9,2735.3,5.4816]
[1739553498751,40.8,2735.4,2735.2,0.7311]
[1739553498959,40.8,2735.4,2734.9,2.916]
[1739553499158,3.2078,2735.3,2734.9,0.73116]
[1739553499358,3.2078,2735.3,2734.8,1.138]
[1739553499548,3.2078,2735.3,2735.0,0.73115]
[1739553499748,3.2078,2735.3,2735.2,0.7311]
[1739553499954,3.2078,2735.8,2734.9,5.3796512]
[1739553500160,3.2078,2735.8,2735.4,0.73103]
[1739553500454,40.8,2735.5,2735.4,0.73103]
[1739553501852,40.8,2735.5,2734.9,5.3796512]
[1739553501853,44.0078,2735.5,2734.8,1.138]
[1739553502158,44.0078,2735.5,2734.5,4.3136]
[1739553502159,3.5517412,2735.1,2734.4,0.00548095]
[1739553502464,3.2078,2734.5,2734.4,0.00548095]
[1739553503058,44.0078,2734.5,2734.4,0.73679095]
[1739553503254,44.0078,2734.5,2734.4,0.00548095]
[1739553505359,44.73909,2734.5,2734.4,0.00548095]
[1739553505559,44.0078,2734.5,2734.4,0.00548095]
[1739553506470,44.73909,2734.5,2734.4,0.00548095]
[1739553506768,44.0078,2734.5,2734.4,0.73679095]
[1739553506959,44.0078,2734.5,2734.4,0.00548095]
[1739553507160,55.3045412,2734.5,2733.9,1.1445]
[1739553507362,3.2078,2734.1,2733.6,1.1586]
[1739553507566,3.2078,2734.1,2733.9,0.73144]
[1739553507868,3.2078,2734.1,2734.0,0.73142]
[1739553508464,3.2078,2734.1,2733.9,0.73143]
[1739553508768,3.2078,2734.1,2733.8,0.00548095]
[1739553508964,3.2078,2734.1,2734.0,0.73142]
[1739553509154,44.0078,2734.1,2734.0,0.73142]
[1739553509665,40.8,2734.1,2734.0,0.73142]
[1739553510264,40.8,2734.1,2734.0,1.90322]
[1739553511168,40.8,2734.1,2734.0,1.1718]
[1739553511367,40.8,2734.1,2734.0,1.90322]
[1739553511968,40.8,2734.1,2734.0,1.1718]
[1739553512369,44.0078,2734.1,2733.8,0.00548095]
[1739553512574,0.73145,2733.9,2733.8,0.00548095]
[1739553513068,0.73152,2733.7,2733.4,0.73157]
[1739553513274,44.0078,2733.5,2733.4,0.73157]
[1739553515777,40.8,2733.5,2733.4,0.73157]
[1739553516273,3.2078,2734.3,2733.9,0.73143]
[1739553516576,3.2078,2734.3,2734.0,1.84681]
[1739553517369,40.8,2734.1,2734.0,1.84681]
[1739553521576,1.82855,2734.0,2733.2,0.003654]
[1739553521778,3.2078,2733.5,2733.2,0.003654]
[1739553521985,0.73159,2733.4,2733.2,0.003654]
[1739553522176,3.2078,2733.5,2733.2,0.003654]
[1739553522380,0.73159,2733.4,2733.2,0.003654]
[1739553522581,3.93937,2733.5,2733.2,0.003654]
[1739553522781,40.8,2733.3,2733.2,0.003654]
[1739553522981,40.8,2733.3,2733.2,0.735284]
[1739553523380,40.8,2733.3,2733.2,0.003654]
[1739553525076,41.53161,2733.3,2733.2,0.003654]
[1739553525985,42.65851,2733.3,2733.2,0.003654]
[1739553526686,41.9269,2733.3,2733.2,0.003654]
[1739553526885,40.8,2733.3,2733.2,0.003654]
[1739553527380,41.53161,2733.3,2733.2,0.003654]
[1739553527882,41.60691,2733.3,2733.2,0.003654]
[1739553528689,47.60691,2733.3,2733.2,0.003654]
[1739553529983,41.60691,2733.3,2733.2,0.003654]
[1739553530288,47.60691,2733.3,2733.2,0.003654]
[1739553530589,41.60691,2733.3,2733.2,0.003654]
[1739553531088,40.8,2733.3,2733.2,0.735284]
[1739553531589,41.53161,2733.3,2733.2,0.735284]
[1739553532289,41.53161,2733.3,2733.2,0.003654]
[1739553533481,41.53161,2733.3,2733.2,0.735284]
[1739553533688,40.8,2733.3,2733.2,0.735284]
[1739553535893,40.8,2733.3,2733.2,1.910584]
[1739553537491,40.8,2733.3,2733.2,5.118384]
[1739553540192,40.8,2733.3,2733.2,8.6701252]
[1739553540395,40.8,2733.3,2733.2,15.8337343]
[1739553541499,3.2078,2734.1,2734.0,0.73142]
[1739553542192,3.2078,2734.1,2733.9,2.3255]
[1739553542193,3.2078,2734.1,2733.9,3.05694]
[1739553542384,3.2078,2734.1,2734.0,0.73142]
[1739553542984,44.0078,2734.1,2734.0,0.73142]
[1739553544497,40.8,2734.1,2734.0,0.73142]
[1739553545595,40.8,2734.1,2734.0,3.93922]
[1739553547199,40.8,2734.1,2734.0,4.23281245]
[1739553547702,40.8,2734.1,2734.0,3.93922]
[1739553550898,40.8,2734.1,2734.0,0.73142]
[1739553555816,0.00548095,2734.7,2734.6,0.73126]
[1739553556399,3.2078,2735.0,2734.6,0.73126]
[1739553556600,1.1797,2735.5,2734.9,0.73118]
[1739553556801,6.0674,2735.9,2735.4,2.83989107]
[1739553557001,3.2078,2735.9,2735.4,2.83989107]
[1739553557201,40.8,2735.5,2735.4,3.57093107]
[1739553557593,40.8,2735.5,2735.4,4.28666659]
[1739553557795,40.8,2735.5,2735.4,0.73104]
[1739553558000,40.8,2735.5,2735.2,2.83388095]
[1739553558298,40.8,2735.5,2735.3,0.73106]
[1739553558699,40.8,2735.5,2735.2,0.00548095]
[1739553558903,40.8,2735.5,2735.2,0.73658095]
[1739553559097,40.8,2735.5,2735.3,0.73107]
[1739553559699,40.8,2735.5,2735.2,0.00548095]
[1739553560205,40.8,2735.5,2735.3,0.73106]
[1739553560903,40.8,2735.5,2735.2,0.00548095]
[1739553561304,40.8,2735.5,2735.3,0.73107]
[1739553561504,40.8,2735.5,2735.2,0.00548095]
[1739553561701,40.8,2735.5,2735.3,0.73107]
[1739553562099,4.4002,2735.6,2735.2,0.00548095]
[1739553562502,4.4002,2735.6,2735.4,0.73104]
[1739553563105,40.8,2735.5,2735.4,0.73104]
[1739553563506,40.8,2735.5,2735.2,0.00548095]
[1739553563805,40.8,2735.5,2735.4,0.73104]
[1739553565500,40.8,2735.5,2735.4,4.28666659]
[1739553565903,40.8,2735.5,2735.4,6.02866659]
[1739553566904,40.8,2735.5,2735.4,12.02866659]
[1739553567210,0.00548095,2735.7,2735.6,0.73099]
[1739553567409,0.00548095,2735.7,2735.6,3.93879]
[1739553568315,40.80548095,2735.7,2735.6,9.93879]
[1739553570702,40.80548095,2735.7,2735.6,3.93879]
[1739553572512,40.80548095,2735.7,2735.5,2.2167]
[1739553572714,40.80548095,2735.7,2735.5,4.68871]
[1739553573013,40.80548095,2735.7,2735.3,4.9488]
[1739553573206,40.80548095,2735.7,2735.4,0.73103]
[1739553573207,0.00548095,2735.7,2735.4,0.73103]
[1739553573506,0.00548095,2735.7,2735.2,0.00548095]
[1739553573703,40.8,2735.4,2735.2,0.00548095]
[1739553574102,3.93887,2735.3,2735.2,0.00548095]
[1739553574313,3.2078,2735.3,2734.6,1.741]
[1739553574505,3.2078,2734.8,2734.6,1.741]
[1739553574908,40.8,2734.7,2734.6,1.741]
[1739553575105,41.53125,2734.7,2734.3,20.893]
[1739553575305,40.8,2734.7,2734.3,1.741]
[1739553575609,0.73127,2734.6,2734.3,1.741]
[1739553575817,3.2078,2734.5,2734.2,0.003654]
[1739553576215,0.73134,2734.3,2734.2,0.003654]
[1739553576919,41.53134,2734.3,2734.2,0.003654]
[1739553577621,40.8,2734.3,2733.6,0.73152]
[1739553577813,3.93923,2734.0,2733.5,0.73154]
[1739553578008,3.2078,2734.0,2733.5,0.73153]
[1739553578415,3.93923,2734.0,2733.4,1.87216]
[1739553578620,3.2078,2734.0,2733.5,0.73155]
[1739553578808,3.21328095,2734.0,2733.5,0.73155]
[1739553579420,3.21328095,2734.0,2733.5,0.73153]
[1739553579611,3.21328095,2734.0,2733.4,1.1406]
[1739553579612,0.73145,2733.9,2733.4,0.73157]
[1739553579823,3.21328095,2734.0,2733.3,3.2078]
[1739553580015,3.2078,2733.7,2733.0,6.76342659]
[1739553580315,3.2078,2733.3,2732.8,0.73173]
[1739553580715,3.93941,2733.3,2732.8,0.73173]
[1739553581322,3.93942,2733.3,2732.6,3.2078]
[1739553581724,3.93942,2733.3,2732.8,0.73173]
[1739553582110,3.93942,2733.3,2732.6,3.2078]
[1739553582316,0.73164,2733.2,2732.7,0.73177]
[1739553582519,3.93943,2733.3,2732.7,0.73177]
[1739553582821,40.8,2732.8,2732.7,0.73177]
[1739553583215,40.8,2732.8,2732.5,0.73181]
[1739553583414,40.8,2732.8,2732.5,0.73182]
[1739553584020,40.8,2732.8,2732.5,0.73181]
[1739553584221,40.8,2732.8,2732.4,3.55562659]
[1739553584424,40.8,2732.8,2732.6,0.73179]
[1739553584721,40.8,2732.8,2732.4,3.55562659]
[1739553585324,40.8,2732.8,2732.6,0.73178]
[1739553585524,40.8,2732.8,2732.4,3.55562659]
[1739553585927,40.8,2732.8,2732.7,0.73177]
[1739553586113,40.8,2732.8,2732.7,4.28739659]
[1739553586321,3.2078,2733.6,2732.7,3.55562659]
[1739553586520,3.2078,2733.6,2733.0,3.55562659]
[1739553586722,0.73165,2733.2,2732.7,0.73176]
[1739553587014,3.2078,2733.3,2732.6,1.742]
[1739553587221,3.2078,2733.3,2733.2,0.73163]
[1739553587818,40.8,2733.5,2733.2,0.73163]
[1739553588018,40.8,2733.5,2733.3,0.7316]
[1739553588430,40.8,2733.5,2733.4,0.73158]
[1739553590931,0.00548095,2734.0,2733.9,0.73145]
[1739553591534,0.00548095,2734.0,2733.9,1.92405]
[1739553591923,40.80548095,2734.0,2733.9,1.92405]
[1739553597234,40.80548095,2734.0,2733.9,0.73145]
[1739553598642,40.80548095,2734.0,2733.9,6.73145]
[1739553599134,1.1797,2734.8,2733.9,6.0]
[1739553599336,3.2078,2734.9,2734.7,0.73121]
[1739553599543,3.2078,2734.9,2734.8,0.7312]
[1739553599836,3.2078,2734.9,2734.5,1.1899]
[1739553600039,3.2078,2734.9,2734.8,0.7312]
[1739553600333,40.8,2734.9,2734.8,0.7312]
[1739553601341,40.8,2734.9,2734.8,1.8877]
[1739553602851,0.00548095,2735.1,2735.0,0.73115]
[1739553603147,0.00548095,2735.1,2735.0,7.49457659]
[1739553603845,40.80548095,2735.1,2735.0,7.49457659]
[1739553606053,3.2078,2735.9,2735.0,6.76342659]
[1739553606244,3.2078,2735.9,2734.9,0.18363698]
[1739553606245,3.2078,2735.9,2735.3,6.76342659]
[1739553606450,3.93872,2735.9,2735.4,0.73102]
[1739553606645,3.2078,2735.9,2735.4,0.73102]
[1739553606852,0.73094,2735.8,2735.4,0.73102]
[1739553607053,40.8,2735.5,2735.4,0.73102]
[1739553608957,0.00548095,2735.9,2735.4,6.0]
[1739553609255,3.55562659,2737.4,2735.8,6.76342659]
[1739553609256,1.1477,2736.7,2735.8,6.76342659]
[1739553609454,4.348,2737.2,2736.4,3.55562659]
[1739553609653,1.1477,2737.1,2736.4,3.55562659]
[1739553610349,0.00548095,2737.0,2736.8,0.73065]
[1739553610547,40.8,2736.9,2736.8,0.73065]
[1739553611948,40.8,2736.9,2736.5,1.74548095]
[1739553612157,44.0078,2736.9,2736.5,1.74548095]
[1739553612361,44.73845,2736.9,2736.5,0.00548095]
[1739553612547,44.0078,2736.9,2736.5,0.00548095]
[1739553613254,44.0078,2736.9,2736.5,0.73622095]
[1739553613456,44.73846,2736.9,2736.5,0.00548095]
[1739553613653,44.0078,2736.9,2736.5,0.00548095]
[1739553614052,44.0078,2736.9,2736.5,0.73623095]
[1739553614656,44.0078,2736.9,2736.5,0.00548095]
[1739553615061,44.0078,2736.9,2736.5,0.73622095]
[1739553615555,3.2078,2736.9,2736.5,0.73622095]
[1739553615758,3.2078,2736.9,2736.5,0.00548095]
[1739553615960,44.0078,2736.6,2735.8,1.739]
[1739553616148,3.2078,2736.3,2736.1,0.73085]
[1739553616357,1.1526,2736.2,2736.1,0.73085]
[1739553617057,41.9526,2736.2,2736.1,0.73085]
[1739553617559,41.9526,2736.2,2735.9,0.00548095]
[1739553617764,41.9526,2736.2,2735.9,0.73638095]
[1739553617948,41.9526,2736.2,2735.9,0.00548095]
[1739553618153,3.2078,2736.1,2735.9,0.00548095]
[1739553618350,3.2078,2736.1,2735.9,0.73638095]
[1739553618558,3.2078,2736.1,2736.0,0.73088]
[1739553618762,41.9526,2736.2,2735.9,0.00548095]
[1739553618962,41.9526,2736.2,2736.1,0.73086]
[1739553619758,41.9526,2736.2,2735.9,0.00548095]
[1739553620063,3.2078,2736.1,2736.0,0.73088]
[1739553622658,40.8,2736.2,2736.1,0.73086]
[1739553622861,40.8,2736.2,2736.1,4.28648659]
[1739553625369,40.8,2736.2,2736.0,2.46987]
[1739553625664,40.8,2736.2,2736.0,1.739]
[1739553625860,40.8,2736.2,2736.0,2.46987]
[1739553626969,40.8,2736.2,2736.1,0.73086]
[1739553628168,40.8,2736.2,2736.0,0.73086]
[1739553628361,40.8,2736.2,2735.9,0.73637095]
[1739553628561,40.8,2736.2,2736.0,0.73088]
[1739553629062,40.8,2736.2,2736.1,0.73086]
[1739553629873,40.8,2736.2,2736.1,2.94946]
[1739553631672,40.8,2736.2,2735.9,0.00548095]
[1739553632067,40.8,2736.2,2736.1,0.73086]
[1739553632466,40.8,2736.2,2736.0,0.73087]
[1739553632661,40.8,2736.2,2736.1,0.73086]
[1739553633471,40.8,2736.2,2736.1,2.98546]
[1739553633873,40.8,2736.2,2736.1,6.19326]
[1739553634277,40.8,2736.2,2736.1,7.35282992]
[1739553636275,40.8,2736.2,2736.1,6.19326]
[1739553636577,40.8,2736.2,2736.1,1.84386]
[1739553637677,40.8,2736.2,2736.1,3.00485725]
[1739553637873,40.8,2736.2,2736.1,1.84386]
[1739553638276,40.8,2736.2,2736.1,3.00528282]
[1739553638967,40.8,2736.2,2736.1,1.84386]
[1739553639381,40.8,2736.2,2736.1,3.00529877]
[1739553642084,40.8,2736.2,2736.1,1.89229877]
[1739553647079,40.8,2736.2,2736.1,1.16143877]
[1739553647279,40.8,2736.2,2735.9,1.74348095]
[1739553647484,0.73086,2736.1,2735.9,0.00548095]
[1739553647873,40.8,2736.2,2735.9,0.73637095]
[1739553648479,41.53083,2736.2,2735.9,0.00548095]
[1739553648989,41.53083,2736.2,2735.9,0.73638095]
[1739553649492,0.73087,2736.1,2735.9,0.00548095]
[1739553649679,1.82057,2736.1,2735.9,0.00548095]
[1739553649880,1.0897,2736.1,2735.9,0.73638095]
[1739553651287,1.0897,2736.1,2735.9,0.00548095]
[1739553652285,1.0897,2736.1,2735.9,0.73638095]
[1739553652986,1.0897,2736.1,2735.9,0.73637095]
[1739553653288,1.0897,2736.1,2736.0,0.73088]
[1739553653691,40.8,2736.2,2736.1,0.73086]
[1739553655088,40.8,2736.2,2736.1,1.89370919]
[1739553660889,40.8,2736.2,2736.1,1.16284919]
[1739553661086,40.8,2736.2,2736.0,0.73087]
[1739553661391,40.8,2736.2,2735.9,0.73638095]
[1739553661593,40.8,2736.2,2735.7,2.5402828]
[1739553661594,3.2078,2736.0,2735.7,1.4113828]
[1739553661892,2.83707255,2735.8,2735.1,2.28645852]
[1739553662096,2.83707255,2735.8,2734.7,7.78087255]
[1739553662097,3.2078,2735.3,2734.7,7.78087255]
[1739553662292,1.1372,2735.2,2734.8,0.73119]
[1739553662590,1.1372,2735.2,2734.8,0.73118]
[1739553663095,1.86831,2735.2,2734.8,0.73118]
[1739553663394,1.1372,2735.2,2734.8,0.73119]
[1739553663700,1.8683,2735.2,2734.8,0.73119]
[1739553664087,1.1372,2735.2,2734.8,0.73119]
[1739553664399,1.1372,2735.2,2734.8,0.7312]
[1739553664699,1.8683,2735.2,2734.8,0.7312]
[1739553664899,1.8683,2735.2,2734.7,3.21328095]
[1739553665097,1.8683,2735.2,2734.8,0.7312]
[1739553666495,1.1372,2735.2,2734.9,0.73117]
[1739553666701,1.1372,2735.2,2734.7,3.21328095]
[1739553666702,1.86831,2735.2,2734.8,0.7312]
[1739553667301,1.1372,2735.2,2734.7,3.21328095]
[1739553667496,1.86831,2735.2,2734.8,0.73118]
[1739553667703,40.8,2735.1,2734.8,0.73118]
[1739553668498,40.8,2735.1,2734.7,3.21328095]
[1739553668499,40.8,2735.1,2734.7,3.94450095]
[1739553668702,40.8,2735.1,2734.8,0.73119]
[1739553669103,40.8,2735.1,2734.9,0.73117]
[1739553669508,40.8,2735.1,2734.7,0.00548095]
[1739553669705,40.8,2735.1,2734.8,0.73119]
[1739553670105,40.8,2735.1,2734.7,0.00548095]
[1739553670305,40.8,2735.1,2735.0,0.73115]
[1739553670706,40.8,2735.1,2734.7,0.00548095]
[1739553670907,40.8,2735.1,2735.0,0.73115]
[1739553671501,40.8,2735.1,2735.0,3.56822255]
[1739553671711,3.2078,2736.2,2735.0,5.63497255]